lending/lending_fUSD_20240710
["ID","MTS","AMOUNT","RATE_DAILY","PERIOD"]
[331617562,1720584650379,-500.0,0.00013698,2]
[331617563,1720584650388,-995.21,0.00013698,2]
[331617564,1720584650397,-954.76,0.00013698,2]
[331617565,1720584650406,-1226.99,0.00013698,2]
[331617566,1720584650415,-2161.95,0.00013698,2]
[331617567,1720584650425,-500.0,0.00013698,2]
[331617568,1720584650437,-500.0,0.00013698,2]
[331617569,1720584650445,-500.0,0.00013698,2]
[331617570,1720584650455,-1731.49,0.00013698,2]
[331617571,1720584650463,-1238.34,0.00013698,2]
[331617572,1720584650472,-500.0,0.00013698,2]
[331617573,1720584650482,-500.0,0.00013698,2]
[331617574,1720584650491,-500.0,0.00013698,2]
[331617575,1720584650500,-534.07,0.00013698,2]
[331617576,1720584650509,-500.0,0.00013698,2]
[331617577,1720584650518,-500.0,0.00013698,2]
[331617578,1720584650528,-500.0,0.00013698,2]
[331617579,1720584650537,-2287.31,0.00013698,2]
[331617580,1720584650546,-741.53,0.00013698,2]
[331617581,1720584650556,-657.66,0.00013698,2]
[331617582,1720584650565,-838.8,0.00013698,2]
[331617583,1720584650575,-1247.77,0.00013698,2]
[331617584,1720584650583,-500.0,0.00013698,2]
[331617585,1720584650593,-537.57048977,0.00013698,2]
[331617586,1720584650602,-614.45,0.00013698,2]
[331617587,1720584650612,-608.29,0.00013698,2]
[331617588,1720584650622,-3341.13,0.00013698,2]
[331617589,1720584650631,-500.0,0.00013698,2]
[331617590,1720584650640,-500.0,0.00013698,2]
[331617591,1720584650650,-1493.7,0.00013698,2]
[331617592,1720584650659,-500.0,0.00013698,2]
[331617593,1720584650669,-500.0,0.00013698,2]
[331617594,1720584650679,-500.0,0.00013698,2]
[331617595,1720584650688,-500.0,0.00013698,2]
[331617596,1720584650698,-2829.54,0.00013698,2]
[331617597,1720584650706,-882.94,0.00013698,2]
[331617598,1720584650715,-1901.75315437,0.00013698,2]
[331617599,1720584651499,-2.85684563,0.00013698,2]
[331617600,1720584651509,-1388.61,0.00013698,2]
[331617601,1720584651519,-741.72,0.00013698,2]
[331617602,1720584651528,-500.0,0.00013698,2]
[331617603,1720584651538,-312.16299066,0.00013698,2]
[331617604,1720584651547,-1260.15,0.00013698,2]
[331617605,1720584651556,-1122.24,0.00013698,2]
[331617606,1720584651565,-1432.76,0.00013698,2]
[331617607,1720584651574,-500.0,0.00013698,2]
[331617608,1720584651583,-558.46,0.00013698,2]
[331617609,1720584651593,-518.35,0.00013698,2]
[331617610,1720584651604,-500.0,0.00013698,2]
[331617611,1720584651614,-500.0,0.00013698,2]
[331617612,1720584651623,-2673.39,0.00013698,2]
[331617613,1720584651633,-1528.52,0.00013698,2]
[331617614,1720584651643,-500.0,0.00013698,2]
[331617615,1720584651652,-500.0,0.00013698,2]
[331617616,1720584651662,-500.0,0.00013698,2]
[331617617,1720584651671,-2718.65,0.00013698,2]
[331617618,1720584651682,-2142.26,0.00013698,2]
[331617619,1720584651691,-500.0,0.00013698,2]
[331617620,1720584651700,-500.0,0.00013698,2]
[331617621,1720584651709,-965.87,0.00013698,2]
[331617622,1720584651721,-500.0,0.00013698,2]
[331617623,1720584651731,-611.44,0.00013698,2]
[331617624,1720584651740,-500.0,0.00013698,2]
[331617625,1720584651749,-500.0,0.00013698,2]
[331617626,1720584651757,-737.69,0.00013698,2]
[331617627,1720584651766,-500.0,0.00013698,2]
[331617628,1720584651775,-500.0,0.00013698,2]
[331617629,1720584651785,-500.0,0.00013698,2]
[331617630,1720584651794,-1069.47,0.00013698,2]
[331617631,1720584651803,-750.86,0.00013698,2]
[331617632,1720584651813,-916.95,0.00013698,2]
[331617633,1720584651822,-714.01,0.00013698,2]
[331617634,1720584651831,-500.0,0.00013698,2]
[331617635,1720584651843,-500.0,0.00013698,2]
[331617636,1720584651853,-632.74,0.00013698,2]
[331617637,1720584651864,-500.0,0.00013698,2]
[331617638,1720584651873,-2025.18,0.00013698,2]
[331617639,1720584651882,-500.0,0.00013698,2]
[331617640,1720584651891,-500.0,0.00013698,2]
[331617641,1720584651900,-2292.18,0.00013698,2]
[331617642,1720584651909,-1291.04,0.00013698,2]
[331617643,1720584651918,-1303.23,0.00013698,2]
[331617644,1720584651928,-500.0,0.00013698,2]
[331617645,1720584651937,-500.0,0.00013698,2]
[331617646,1720584651947,-500.0,0.00013698,2]
[331617647,1720584651956,-778.48,0.00013698,2]
[331617648,1720584651965,-500.0,0.00013698,2]
[331617649,1720584651974,-592.6,0.00013698,2]
[331617650,1720584651983,-942.96,0.00013698,2]
[331617651,1720584651993,-850.95,0.00013698,2]
[331617652,1720584652003,-2125.43,0.00013698,2]
[331617653,1720584652012,-500.0,0.00013698,2]
[331617654,1720584652024,-500.0,0.00013698,2]
[331617655,1720584652032,-655.79,0.00013698,2]
[331617656,1720584652041,-500.0,0.00013698,2]
[331617657,1720584652051,-727.37,0.00013698,2]
[331617658,1720584652059,-48.90067155,0.00013698,2]
[331617659,1720584652073,-1936.85323252,0.00013698,2]
[331617660,1720584652087,-322.15682378,0.00013698,2]
[331617661,1720584652111,-156.84927215,0.00013698,2]
[331617662,1720584652120,-818.47,0.00013698,2]
[331617663,1720584652129,-500.0,0.00013698,2]
[331617664,1720584652139,-500.0,0.00013698,2]
[331617665,1720584652148,-977.34,0.00013698,2]
[331617666,1720584652158,-500.0,0.00013698,2]
[331617667,1720584652167,-128.25108477,0.00013698,2]
[331617668,1720584652179,-373.57891523,0.00013698,2]
[331617669,1720584652188,-643.88,0.00013698,2]
[331617670,1720584652197,-94.22944717,0.00013698,2]
[331617671,1720584653492,-322.33644572,0.00013598,2]
[331617672,1720584653502,-468.68055283,0.00013698,2]
[331617673,1720584653512,-412.74868941,0.00013698,2]
[331617674,1720584653523,-375.28131059,0.00013698,2]
[331617675,1720584653533,-500.0,0.00013698,2]
[331617676,1720584653542,-812.45076779,0.00013698,2]
[331617677,1720584653554,-3087.85923221,0.00013698,2]
[331617678,1720584653563,-500.0,0.00013698,2]
[331617679,1720584653573,-500.0,0.00013698,2]
[331617680,1720584653582,-1353.63472692,0.00013698,2]
[331617681,1720584653594,-2013.93527308,0.00013698,2]
[331617682,1720584653603,-706.0,0.00013698,2]
[331617683,1720584653613,-835.01,0.00013698,2]
[331617684,1720584653622,-2494.6,0.00013698,2]
[331617685,1720584653631,-500.0,0.00013698,2]
[331617686,1720584653640,-742.94,0.00013698,2]
[331617687,1720584653650,-500.0,0.00013698,2]
[331617688,1720584653659,-645.78,0.00013698,2]
[331617689,1720584653668,-830.57045563,0.00013698,2]
[331617690,1720584653681,-719.59954437,0.00013698,2]
[331617691,1720584653691,-500.0,0.00013698,2]
[331617692,1720584653700,-611.33,0.00013698,2]
[331617693,1720584653711,-763.43,0.00013698,2]
[331617694,1720584653720,-500.0,0.00013698,2]
[331617695,1720584653730,-500.0,0.00013698,2]
[331617696,1720584653740,-535.35,0.00013698,2]
[331617697,1720584653749,-500.0,0.00013698,2]
[331617698,1720584653758,-1393.12,0.00013698,2]
[331617699,1720584653768,-500.0,0.00013698,2]
[331617700,1720584653778,-500.0,0.00013698,2]
[331617701,1720584653787,-974.78,0.00013698,2]
[331617702,1720584653797,-487.5782388,0.00013698,2]
[331617703,1720584653895,-12.4217612,0.00013698,2]
[331617704,1720584653905,-1437.08287332,0.00013698,2]
[331617705,1720584653918,-243.92712668,0.00013698,2]
[331617706,1720584653928,-434.21705469,0.00013698,2]
[331617707,1720584653940,-173.09931319,0.00013698,2]
[331617708,1720584653950,-92.74845069,0.00013698,2]
[331617709,1720584653961,-407.25154931,0.00013698,2]
[331617710,1720584653971,-100.24064414,0.00013698,2]
[331617711,1720584653982,-386.34527195,0.00013698,2]
[331617712,1720584653994,-13.41408391,0.00013698,2]
[331617713,1720584654004,-606.73,0.00013698,2]
[331617714,1720584654013,-1793.34,0.00013698,2]
[331617715,1720584654023,-500.0,0.00013698,2]
[331617716,1720584654033,-2209.78,0.00013698,2]
[331617717,1720584654043,-500.0,0.00013698,2]
[331617718,1720584654053,-500.0,0.00013698,2]
[331617719,1720584654062,-618.88,0.00013698,2]
[331617720,1720584654072,-404.75564839,0.00013698,2]
[331617721,1720584654084,-95.24435161,0.00013698,2]
[331617722,1720584654095,-780.46,0.00013698,2]
[331617723,1720584654104,-765.72,0.00013698,2]
[331617724,1720584654113,-652.10400123,0.00013698,2]
[331617725,1720584654125,-1357.51086529,0.00013698,2]
[331617726,1720584654137,-924.07513348,0.00013698,2]
[331617727,1720584654146,-500.0,0.00013698,2]
[331617728,1720584654156,-419.94860504,0.00013698,2]
[331617729,1720584654178,-292.85694871,0.00013698,2]
[331617730,1720584654210,-858.99079704,0.00013698,2]
[331617731,1720584654221,-362.37364921,0.00013698,2]
[331617732,1720584654231,-500.0,0.00013698,2]
[331617733,1720584654240,-1430.42,0.00013698,2]
[331617734,1720584654250,-1350.96,0.00013698,2]
[331617735,1720584654260,-500.0,0.00013698,2]
[331617736,1720584654270,-500.0,0.00013698,2]
[331617737,1720584654279,-879.12,0.00013698,2]
[331617738,1720584654289,-776.38,0.00013698,2]
[331617739,1720584654299,-500.0,0.00013698,2]
[331617740,1720584654309,-2428.54,0.00013698,2]
[331617741,1720584654319,-500.0,0.00013698,2]
[331617742,1720584654328,-500.0,0.00013698,2]
[331617743,1720584654339,-500.0,0.00013698,2]
[331617744,1720584654348,-500.0,0.00013698,2]
[331617745,1720584654358,-721.03,0.00013698,2]
[331617746,1720584654367,-2886.24,0.00013698,2]
[331617747,1720584654376,-610.07,0.00013698,2]
[331617748,1720584654386,-500.0,0.00013698,2]
[331617749,1720584654396,-500.0,0.00013698,2]
[331617750,1720584654406,-500.0,0.00013698,2]
[331617751,1720584654416,-500.0,0.00013698,2]
[331617752,1720584654426,-720.53,0.00013698,2]
[331617753,1720584654438,-696.47,0.00013698,2]
[331617754,1720584654447,-762.77,0.00013698,2]
[331617755,1720584654457,-500.0,0.00013698,2]
[331617756,1720584654467,-971.34,0.00013698,2]
[331617757,1720584654477,-1728.83,0.00013698,2]
[331617758,1720584654487,-633.64,0.00013698,2]
[331617759,1720584654497,-500.0,0.00013698,2]
[331617760,1720584654507,-500.0,0.00013698,2]
[331617761,1720584654517,-814.59,0.00013698,2]
[331617762,1720584654526,-836.64,0.00013698,2]
[331617763,1720584654536,-500.0,0.00013698,2]
[331617764,1720584654546,-500.0,0.00013698,2]
[331617765,1720584654556,-1412.77,0.00013698,2]
[331617766,1720584654566,-500.0,0.00013698,2]
[331617767,1720584654576,-736.49,0.00013698,2]
[331617768,1720584654586,-1953.54,0.00013698,2]
[331617769,1720584654596,-500.0,0.00013698,2]
[331617770,1720584654607,-500.0,0.00013698,2]
[331617771,1720584654617,-500.0,0.00013698,2]
[331617772,1720584654628,-500.0,0.00013698,2]
[331617773,1720584654637,-855.72,0.00013698,2]
[331617774,1720584654647,-2226.19,0.00013698,2]
[331617775,1720584654657,-1527.19,0.00013698,2]
[331617776,1720584654667,-500.0,0.00013698,2]
[331617777,1720584654676,-805.33,0.00013698,2]
[331617778,1720584654691,-500.0,0.00013698,2]
[331617779,1720584654701,-500.0,0.00013698,2]
[331617780,1720584654710,-995.88,0.00013698,2]
[331617781,1720584654720,-500.0,0.00013698,2]
[331617782,1720584654729,-500.0,0.00013698,2]
[331617783,1720584654739,-2154.21,0.00013698,2]
[331617784,1720584654748,-887.31,0.00013698,2]
[331617785,1720584654758,-500.0,0.00013698,2]
[331617786,1720584654768,-500.0,0.00013698,2]
[331617787,1720584654778,-1539.0,0.00013698,2]
[331617788,1720584654788,-500.0,0.00013698,2]
[331617789,1720584654798,-500.0,0.00013698,2]
[331617790,1720584654808,-500.0,0.00013698,2]
[331617791,1720584654819,-500.0,0.00013698,2]
[331617792,1720584654831,-595.72,0.00013698,2]
[331617793,1720584654842,-531.01,0.00013698,2]
[331617794,1720584654852,-653.96,0.00013698,2]
[331617795,1720584654862,-3032.1958728,0.00013698,2]
[331617796,1720584654898,-916.3941272,0.00013698,2]
[331617797,1720584654908,-136.94153407,0.00013698,2]
[331617798,1720584654920,-442.71846593,0.00013698,2]
[331617799,1720584654933,-134.92153407,0.00013698,2]
[331617800,1720584654944,-1182.69224089,0.00013698,2]
[331617801,1720584654965,-64.44622504,0.00013698,2]
[331617802,1720584654974,-500.0,0.00013698,2]
[331617803,1720584654983,-511.9,0.00013698,2]
[331617804,1720584654993,-1106.1,0.00013698,2]
[331617805,1720584655002,-586.93,0.00013698,2]
[331617806,1720584655012,-899.23,0.00013698,2]
[331617807,1720584655022,-540.00089444,0.00013698,2]
[331617808,1720584655031,-357.82470943,0.00013698,2]
[331617809,1720584655042,-892.54323916,0.00013698,2]
[331617810,1720584655054,-343.51205141,0.00013698,2]
[331617811,1720584655064,-661.33294826,0.00013698,2]
[331617812,1720584655076,-1115.65705174,0.00013698,2]
[331617813,1720584655085,-500.0,0.00013698,2]
[331617814,1720584655094,-659.26,0.00013698,2]
[331617815,1720584655104,-139.76971854,0.00013698,2]
[331617816,1720584655132,-360.23028146,0.00013698,2]
[331617817,1720584655141,-69.76971854,0.00013698,2]
[331617818,1720584655152,-430.23028146,0.00013698,2]
[331617819,1720584655161,-482.62971627,0.00013698,2]
[331617820,1720584655201,-346.01376879,0.00013698,2]
[331617821,1720584687082,242.68,0.00010959,2]
[331617822,1720584802142,216.346555,0.0002498,120]
[331617823,1720584860961,49404.61626165,0.00011199,2]
[331617824,1720584882669,170.05,0.00010175,2]
[331617825,1720584944266,548.78116986,0.00013,120]
[331617826,1720584971767,500.0,0.00015,120]
[331617827,1720585065778,381.40617125,0.00011199,2]
[331617828,1720585098441,368.13,0.00010541,2]
[331617829,1720585100597,658.3771383,0.00011199,2]
[331617830,1720585293216,328.94276058,0.00011199,2]
[331617831,1720585391419,238.43071225,0.00011199,2]
[331617832,1720585428918,196.2181572,0.00011199,2]
[331617833,1720585540091,155.51355711,0.00011199,2]
[331617834,1720585546403,244.99173748,0.00011199,2]
[331617836,1720585671165,483.44679723,0.00011199,2]
[331617837,1720585701823,367.82,0.00010183,2]
[331617838,1720585702828,612.13359814,0.00011199,2]
[331617866,1720585833307,-500.0,0.00012022,2]
[331617867,1720585833317,-257.21613236,0.00012085,2]
[331617868,1720585833329,-501.08,0.00012085,2]
[331617869,1720585833341,-1643.40386764,0.00012085,2]
[331617870,1720585833351,-250.0,0.00012122,2]
[331617871,1720585833360,-167.29613236,0.00012124,2]
[331617872,1720585833372,-95.56386764,0.00012124,2]
[331617873,1720585833382,-150.0,0.00012167,2]
[331617874,1720585833392,-754.43613236,0.00012167,2]
[331617875,1720585833403,-256.6307457,0.00012167,2]
[331617876,1720585833413,-132.25675567,0.00012171,2]
[331617894,1720585838111,-117.74324433,0.00012171,2]
[331617895,1720585838121,-181.98,0.00012177,2]
[331617896,1720585838131,-300.0,0.00012177,2]
[331617897,1720585838141,-20.17811175,0.00012178,2]
[331617898,1720585838197,-3385.96953395,0.00012178,2]
[331617899,1720585838210,-20493.8523543,0.00012178,2]
[331617900,1720585838225,-186.02,0.0001223,2]
[331617901,1720585838235,-700.0,0.00012241,2]
[331617902,1720585838246,-229.05316951,0.00012241,2]
[331617903,1720585838255,-186.02,0.00012264,2]
[331617904,1720585838265,-400.0,0.00012273,2]
[331617905,1720585838275,-186.02,0.00012297,2]
[331617906,1720585838285,-186.02,0.00012331,2]
[331617907,1720585838295,-150.0,0.00012353,2]
[331617908,1720585838306,-186.02,0.00012365,2]
[331617909,1720585838316,-1962.0,0.00012388,2]
[331617910,1720585838327,-186.02,0.00012398,2]
[331617911,1720585838337,-186.02,0.00012432,2]
[331617912,1720585838352,-367.82,0.00012447,2]
[331617913,1720585838362,-186.02,0.00012465,2]
[331617914,1720585838372,-186.02,0.00012499,2]
[331617915,1720585838382,-186.02,0.00012532,2]
[331617916,1720585838392,-186.02,0.00012566,2]
[331617917,1720585838402,-186.02,0.00012599,2]
[331617918,1720585838412,-9790.92,0.00012624,2]
[331617919,1720585838422,-186.02,0.00012633,2]
[331617920,1720585838433,-186.02,0.00012666,2]
[331617921,1720585838443,-249.58,0.00012669,2]
[331617922,1720585838453,-1000.0,0.00012693,2]
[331617923,1720585838463,-186.02,0.000127,2]
[331617924,1720585838474,-186.02,0.00012733,2]
[331617925,1720585838484,-235.82933,0.00012734,2]
[331617926,1720585838494,-186.02,0.00012767,2]
[331617927,1720585838504,-186.02,0.000128,2]
[331617928,1720585838514,-419.36,0.00012801,2]
[331617929,1720585838524,-419.36,0.00012801,2]
[331617930,1720585838535,-425.27,0.00012801,2]
[331617931,1720585838545,-186.02,0.00012834,2]
[331617932,1720585838555,-419.36,0.00012841,2]
[331617933,1720585838565,-186.02,0.00012868,2]
[331617934,1720585838576,-700.0,0.00013063,2]
[331617935,1720585838586,-5000.0,0.00013128,2]
[331617937,1720585838597,-2505.54842617,0.00013244,2]
[331617939,1720585838608,-156.444561,0.00013477,2]
[331617941,1720585838621,-178.031542,0.00013477,2]
[331617943,1720585838632,-257.886499,0.00013477,2]
[331617945,1720585838643,-407.10247,0.00013477,2]
[331617947,1720585838654,-5003.42604,0.00013483,2]
[331617948,1720585838664,-5144.78535977,0.000135,3]
[331617950,1720585838675,-176.4353176,0.00013514,2]
[331617952,1720585838705,-1264.59447785,0.00013516,2]
[331617954,1720585838716,-959.65007813,0.00013516,2]
[331617956,1720585838727,-1138.39880609,0.00013574,2]
[331617958,1720585838737,-150.0,0.00013591,2]
[331617960,1720585838747,-170.81539734,0.00013598,2]
[331617962,1720585838759,-5159.8905,0.00013598,2]
[331617964,1720585838769,-443.6594,0.00013598,2]
[331617966,1720585838780,-1792.0844,0.00013598,2]
[331617968,1720585838791,-1000.0,0.000136,3]
[331617970,1720585838801,-164.0,0.000136,3]
[331617972,1720585838811,-232.33655,0.000136,2]
[331617974,1720585838821,-1001.0,0.000136,2]
[331617975,1720585838831,-1002.0,0.000136,2]
[331617976,1720585838840,-407.10247,0.00013646,2]
[331617977,1720585838850,-166.28291187,0.00013653,2]
[331617978,1720585838860,-150.0,0.0001368,2]
[331617979,1720585838870,-232.33656,0.0001368,2]
[331617980,1720585838880,-238.92713038,0.00013688,2]
[331617981,1720585838890,-576.46102239,0.00013695,2]
[331617982,1720585838900,-590.1,0.00013697,2]
[331617983,1720585838911,-515.0,0.00013698,2]
[331617984,1720585838920,-500.0,0.00013698,2]
[331617985,1720585838930,-500.0,0.00013698,2]
[331617986,1720585838940,-500.0,0.00013698,2]
[331617988,1720585838950,-500.0,0.00013698,2]
[331617990,1720585838960,-500.0,0.00013698,2]
[331617992,1720585838969,-500.0,0.00013698,2]
[331617994,1720585838979,-441.31666541,0.00013698,2]
[331617996,1720585838989,-500.0,0.00013698,2]
[331617998,1720585838999,-500.0,0.00013698,2]
[331618000,1720585839008,-500.0,0.00013698,2]
[331618002,1720585839017,-500.0,0.00013698,2]
[331618004,1720585839027,-500.0,0.00013698,2]
[331618006,1720585839036,-500.0,0.00013698,2]
[331618007,1720585839047,-500.0,0.00013698,2]
[331618009,1720585839057,-500.0,0.00013698,2]
[331618011,1720585839067,-500.0,0.00013698,2]
[331618013,1720585839076,-500.0,0.00013698,2]
[331618015,1720585839087,-500.0,0.00013698,2]
[331618016,1720585839096,-362.69187652,0.00013698,2]
[331618017,1720585839107,-500.0,0.00013698,2]
[331618018,1720585839116,-500.0,0.00013698,2]
[331618019,1720585839126,-500.0,0.00013698,2]
[331618020,1720585839135,-500.0,0.00013698,2]
[331618021,1720585839146,-500.0,0.00013698,2]
[331618022,1720585839156,-500.0,0.00013698,2]
[331618023,1720585839169,-500.0,0.00013698,2]
[331618024,1720585839180,-500.0,0.00013698,2]
[331618025,1720585839198,-891.21,0.00013698,2]
[331618026,1720585839222,-2448.37,0.00013698,2]
[331618027,1720585839233,-500.0,0.00013698,2]
[331618028,1720585839244,-668.8,0.00013698,2]
[331618029,1720585839255,-500.0,0.00013698,2]
[331618030,1720585839266,-500.0,0.00013698,2]
[331618031,1720585839277,-558.15,0.00013698,2]
[331618032,1720585839288,-1645.83,0.00013698,2]
[331618033,1720585839299,-200.0,0.00013698,2]
[331618034,1720585839310,-1091.94,0.00013698,2]
[331618035,1720585839320,-690.09,0.00013698,2]
[331618036,1720585839331,-586.04,0.00013698,2]
[331618037,1720585839342,-1971.47,0.00013698,2]
[331618038,1720585839352,-500.0,0.00013698,2]
[331618039,1720585839362,-500.0,0.00013698,2]
[331618040,1720585839373,-500.0,0.00013698,2]
[331618041,1720585839383,-905.56,0.00013698,2]
[331618042,1720585839394,-1576.43,0.00013698,2]
[331618043,1720585839404,-559.32,0.00013698,2]
[331618044,1720585839413,-500.0,0.00013698,2]
[331618045,1720585839423,-1742.21,0.00013698,2]
[331618046,1720585839435,-1898.95,0.00013698,2]
[331618047,1720585839446,-625.6,0.00013698,2]
[331618048,1720585839456,-725.95,0.00013698,2]
[331618049,1720585839466,-607.2,0.00013698,2]
[331618050,1720585839476,-500.0,0.00013698,2]
[331618051,1720585839486,-500.0,0.00013698,2]
[331618052,1720585839496,-1704.78,0.00013698,2]
[331618053,1720585839505,-579.62,0.00013698,2]
[331618054,1720585839515,-500.0,0.00013698,2]
[331618055,1720585839525,-862.26,0.00013698,2]
[331618056,1720585839536,-804.68,0.00013698,2]
[331618057,1720585839546,-1941.95,0.00013698,2]
[331618058,1720585839557,-500.0,0.00013698,2]
[331618059,1720585839568,-1093.94,0.00013698,2]
[331618060,1720585839579,-500.0,0.00013698,2]
[331618061,1720585839590,-937.04,0.00013698,2]
[331618062,1720585839600,-500.0,0.00013698,2]
[331618063,1720585839611,-500.0,0.00013698,2]
[331618064,1720585839623,-897.12,0.00013698,2]
[331618065,1720585839633,-605.18,0.00013698,2]
[331618066,1720585839644,-500.0,0.00013698,2]
[331618067,1720585839654,-500.0,0.00013698,2]
[331618068,1720585839665,-500.0,0.00013698,2]
[331618069,1720585839678,-500.0,0.00013698,2]
[331618070,1720585839688,-500.0,0.00013698,2]
[331618071,1720585839712,-656.85,0.00013698,2]
[331618072,1720585839722,-500.0,0.00013698,2]
[331618073,1720585839732,-500.0,0.00013698,2]
[331618074,1720585839744,-500.0,0.00013698,2]
[331618075,1720585839754,-500.0,0.00013698,2]
[331618076,1720585839765,-2057.73,0.00013698,2]
[331618077,1720585839775,-500.0,0.00013698,2]
[331618078,1720585839786,-942.36,0.00013698,2]
[331618079,1720585839797,-500.0,0.00013698,2]
[331618080,1720585839809,-500.0,0.00013698,2]
[331618081,1720585839819,-823.29,0.00013698,2]
[331618083,1720585839830,-500.0,0.00013698,2]
[331618085,1720585839841,-591.95,0.00013698,2]
[331618087,1720585839851,-574.88,0.00013698,2]
[331618089,1720585839863,-500.0,0.00013698,2]
[331618091,1720585839873,-500.0,0.00013698,2]
[331618092,1720585839883,-500.0,0.00013698,2]
[331618093,1720585839894,-955.81,0.00013698,2]
[331618094,1720585839904,-500.0,0.00013698,2]
[331618095,1720585839915,-500.0,0.00013698,2]
[331618097,1720585839926,-500.0,0.00013698,2]
[331618099,1720585839936,-233.92063349,0.00013698,2]
[331618100,1720585839947,-1609.93,0.00013698,2]
[331618101,1720585839957,-881.57,0.00013698,2]
[331618102,1720585839968,-769.36,0.00013698,2]
[331618103,1720585839978,-1502.36,0.00013698,2]
[331618104,1720585839989,-500.0,0.00013698,2]
[331618105,1720585840000,-500.0,0.00013698,2]
[331618106,1720585840011,-1140.23,0.00013698,2]
[331618107,1720585840021,-217.96290563,0.00013698,2]
[331618108,1720585840031,-500.0,0.00013698,2]
[331618109,1720585840041,-500.0,0.00013698,2]
[331618110,1720585840051,-1317.89,0.00013698,2]
[331618111,1720585840062,-500.0,0.00013698,2]
[331618112,1720585840072,-500.0,0.00013698,2]
[331618113,1720585840083,-533.86,0.00013698,2]
[331618114,1720585840092,-500.0,0.00013698,2]
[331618115,1720585840103,-598.9,0.00013698,2]
[331618116,1720585840113,-500.0,0.00013698,2]
[331618117,1720585840123,-582.94,0.00013698,2]
[331618118,1720585840133,-974.55,0.00013698,2]
[331618119,1720585840143,-664.53,0.00013698,2]
[331618120,1720585840153,-577.31,0.00013698,2]
[331618121,1720585840164,-500.0,0.00013698,2]
[331618122,1720585840174,-533.52,0.00013698,2]
[331618123,1720585840185,-511.19,0.00013698,2]
[331618124,1720585840209,-790.55,0.00013698,2]
[331618125,1720585840219,-1568.25,0.00013698,2]
[331618126,1720585840228,-500.0,0.00013698,2]
[331618127,1720585840239,-500.0,0.00013698,2]
[331618128,1720585840259,-651.92,0.00013698,2]
[331618129,1720585840271,-500.0,0.00013698,2]
[331618130,1720585840281,-763.64,0.00013698,2]
[331618131,1720585840290,-500.0,0.00013698,2]
[331618132,1720585840299,-500.0,0.00013698,2]
[331618133,1720585840309,-1714.55,0.00013698,2]
[331618134,1720585840319,-535.96,0.00013698,2]
[331618135,1720585840329,-500.0,0.00013698,2]
[331618136,1720585840339,-500.0,0.00013698,2]
[331618137,1720585840349,-600.5,0.00013698,2]
[331618138,1720585840359,-784.46,0.00013698,2]
[331618139,1720585840368,-500.0,0.00013698,2]
[331618140,1720585840378,-500.0,0.00013698,2]
[331618141,1720585840387,-500.0,0.00013698,2]
[331618142,1720585840397,-500.0,0.00013698,2]
[331618143,1720585840406,-500.0,0.00013698,2]
[331618144,1720585840416,-500.0,0.00013698,2]
[331618145,1720585840426,-674.26,0.00013698,2]
[331618146,1720585840436,-500.0,0.00013698,2]